fUSD/lending_fUSD_20240624
["ID","MTS","AMOUNT","RATE_DAILY","PERIOD"]
[330334020,1719259963303,-500.0,0.00044383,120]
[330334021,1719259963332,-1122.09,0.00044383,120]
[330334022,1719259963359,-9861.82,0.00044383,120]
[330334023,1719259963386,-1155.29,0.00044383,120]
[330334024,1719259963414,-500.0,0.00044383,120]
[330334025,1719259963440,-915.96,0.00044383,120]
[330334026,1719259963469,-1621.76,0.00044383,120]
[330334027,1719259963497,-7935.13,0.00044383,120]
[330334028,1719259963528,-9195.57,0.00044383,120]
[330334029,1719259963555,-807.12,0.00044383,120]
[330334030,1719259963583,-732.98,0.00044383,120]
[330334031,1719259963611,-14297.31,0.00044383,120]
[330334032,1719259963638,-500.0,0.00044383,120]
[330334033,1719259963667,-1329.06,0.00044383,120]
[330334034,1719259963694,-524.8,0.00044383,120]
[330334035,1719259963722,-500.0,0.00044383,120]
[330334036,1719259963750,-2185.64,0.00044383,120]
[330334037,1719259963779,-500.0,0.00044383,120]
[330334038,1719259963807,-840.34,0.00044383,120]
[330334039,1719259963836,-11351.76,0.00044383,120]
[330334040,1719259963865,-500.0,0.00044383,120]
[330334041,1719259963895,-500.0,0.00044383,120]
[330334042,1719259963923,-1271.86,0.00044383,120]
[330334043,1719259963953,-500.0,0.00044383,120]
[330334044,1719259963983,-7533.65,0.00044383,120]
[330334045,1719259964015,-1000.0,0.00044383,120]
[330334046,1719259964044,-500.0,0.00044383,120]
[330334047,1719259964075,-2900.5,0.00044383,120]
[330334048,1719259964104,-4269.23,0.00044383,120]
[330334049,1719259964133,-13424.13,0.00044383,120]
[330334050,1719259964161,-1920.89,0.00044383,120]
[330334051,1719259964189,-824.87,0.00044383,120]
[330334052,1719259964220,-3710.53,0.00044383,120]
[330334053,1719259964248,-767.16,0.00044383,120]
[330334054,1719259964283,-1075.52,0.00044383,120]
[330334055,1719259964317,-1119.02,0.00044383,120]
[330334056,1719259964348,-1555.22,0.00044383,120]
[330334057,1719259964376,-2902.92,0.00044383,120]
[330334058,1719259964406,-500.0,0.00044383,120]
[330334059,1719259964437,-18200.0,0.00044383,120]
[330334060,1719259964465,-1325.58,0.00044383,120]
[330334061,1719259964494,-850.77,0.00044383,120]
[330334062,1719259964522,-500.0,0.00044383,120]
[330334063,1719259964550,-500.0,0.00044383,120]
[330334064,1719259964578,-500.0,0.00044383,120]
[330334065,1719259964606,-500.0,0.00044383,120]
[330334066,1719259964635,-5694.63,0.00044383,120]
[330334067,1719259964666,-500.0,0.00044383,120]
[330334068,1719259964695,-500.0,0.00044383,120]
[330334069,1719259964725,-620.82,0.00044383,120]
[330334070,1719259964756,-569.27056636,0.00044383,120]
[330334071,1719259964786,-500.0,0.00044383,120]
[330334072,1719259964814,-4418.13,0.00044383,120]
[330334073,1719259964843,-1578.28,0.00044383,120]
[330334074,1719259964871,-1538.01,0.00044383,120]
[330334075,1719259964899,-1018.73,0.00044383,120]
[330334076,1719259964927,-728.27,0.00044383,120]
[330334077,1719259964956,-586.2,0.00044383,120]
[330334078,1719259964985,-810.3,0.00044383,120]
[330334079,1719259965017,-22020.78,0.00044383,120]
[330334080,1719259965046,-10357.37,0.00044383,120]
[330334081,1719259965074,-500.0,0.00044383,120]
[330334082,1719259965103,-841.42,0.00044383,120]
[330334083,1719259965132,-13153.35,0.00044383,120]
[330334084,1719259965161,-500.0,0.00044383,120]
[330334085,1719259965191,-1133.73,0.00044383,120]
[330334086,1719259965221,-500.0,0.00044383,120]
[330334087,1719259965251,-574.57,0.00044383,120]
[330334088,1719259965282,-500.0,0.00044383,120]
[330334089,1719259965313,-946.56,0.00044383,120]
[330334090,1719259965342,-500.0,0.00044383,120]
[330334091,1719259965369,-7092.86,0.00044383,120]
[330334092,1719259965400,-2001.06,0.00044383,120]
[330334093,1719259965429,-813.3,0.00044383,120]
[330334094,1719259965458,-1907.57,0.00044383,120]
[330334095,1719259965486,-500.0,0.00044383,120]
[330334096,1719259965516,-500.0,0.00044383,120]
[330334097,1719259965544,-500.0,0.00044383,120]
[330334098,1719259965575,-500.0,0.00044383,120]
[330334099,1719259965604,-500.0,0.00044383,120]
[330334100,1719259965634,-500.0,0.00044383,120]
[330334101,1719259965663,-15434.26,0.00044383,120]
[330334102,1719259965692,-6288.36,0.00044383,120]
[330334103,1719259965721,-2393.22,0.00044383,120]
[330334104,1719259965750,-703.59,0.00044383,120]
[330334105,1719259965780,-608.52,0.00044383,120]
[330334106,1719259965808,-500.0,0.00044383,120]
[330334107,1719259965838,-21281.56,0.00044383,120]
[330334108,1719259965867,-500.0,0.00044383,120]
[330334109,1719259965898,-802.93,0.00044383,120]
[330334110,1719259965927,-21693.08,0.00044383,120]
[330334111,1719259965955,-500.0,0.00044383,120]
[330334112,1719259965983,-1268.88,0.00044383,120]
[330334113,1719259966011,-12227.58,0.00044383,120]
[330334114,1719259966040,-500.0,0.00044383,120]
[330334115,1719259966247,-500.0,0.00044383,120]
[330334116,1719259966280,-6762.38,0.00044383,120]
[330334117,1719259966310,-437.38049605,0.00044383,120]
[330334118,1719259966338,-500.0,0.00044383,120]
[330334119,1719259966365,-683.34,0.00044383,120]
[330334120,1719259966393,-1642.01,0.00044383,120]
[330334121,1719259966421,-500.0,0.00044383,120]
[330334122,1719259966449,-626.91,0.00044383,120]
[330334123,1719259966477,-2891.95,0.00044383,120]
[330334124,1719259966506,-500.0,0.00044383,120]
[330334125,1719259966537,-2540.59,0.00044383,120]
[330334126,1719259966566,-1382.04,0.00044383,120]
[330334127,1719259966595,-3700.38,0.00044383,120]
[330334128,1719259966625,-545.09,0.00044383,120]
[330334129,1719259966654,-2045.13,0.00044383,120]
[330334130,1719259966684,-989.24,0.00044383,120]
[330334131,1719259966715,-500.0,0.00044383,120]
[330334132,1719259966747,-500.0,0.00044383,120]
[330334133,1719259966777,-551.15,0.00044384,120]
[330334134,1719259966805,-654.77,0.00044657,120]
[330334135,1719259966835,-1774.83,0.00044657,120]
[330334136,1719259966864,-500.0,0.00044657,120]
[330334137,1719259966895,-500.0,0.00044657,120]
[330334138,1719259966925,-500.0,0.00044657,120]
[330334139,1719259966955,-500.0,0.00044657,120]
[330334140,1719259966985,-500.0,0.00044657,120]
[330334141,1719259967019,-800.44,0.00044657,120]
[330334142,1719259967052,-500.0,0.00044657,120]
[330334143,1719259967081,-500.0,0.00044657,120]
[330334144,1719259967112,-500.0,0.00044657,120]
[330334145,1719259967143,-500.0,0.00044657,120]
[330334146,1719259967172,-500.0,0.00044657,120]
[330334147,1719259967202,-635.21,0.00044657,120]
[330334148,1719259967233,-500.0,0.00044657,120]
[330334149,1719259967267,-1258.6,0.00044657,120]
[330334150,1719259967296,-500.0,0.00044657,120]
[330334151,1719259967328,-500.0,0.00044657,120]
[330334152,1719259967359,-1180.71,0.00044657,120]
[330334153,1719259967388,-1629.26,0.00044657,120]
[330334154,1719259967417,-500.0,0.00044657,120]
[330334155,1719259967445,-492.77245089,0.00044657,120]
[330334156,1719259967474,-500.0,0.00044657,120]
[330334157,1719259967501,-1505.86,0.00044657,120]
[330334158,1719259967530,-253.24195395,0.00044657,120]
[330334159,1719259967557,-500.0,0.00044657,120]
[330334160,1719259967584,-500.0,0.00044657,120]
[330334161,1719259967613,-500.0,0.00044657,120]
[330334162,1719259967642,-500.0,0.00044657,120]
[330334163,1719259967671,-517.51535213,0.00044657,120]
[330334164,1719259967701,-1217.5,0.00044657,120]
[330334165,1719259967729,-500.0,0.00044657,120]
[330334166,1719259967758,-510.65379289,0.00044657,120]
[330334167,1719259967788,-500.0,0.00044657,120]
[330334168,1719259967815,-500.0,0.00044657,120]
[330334169,1719259967842,-500.0,0.00044657,120]
[330334170,1719259967870,-500.0,0.00044657,120]
[330334171,1719259967898,-500.0,0.00044657,120]
[330334172,1719259967926,-549.91,0.00044657,120]
[330334173,1719259967954,-500.0,0.00044657,120]
[330334174,1719259967982,-500.0,0.00044657,120]
[330334175,1719259968010,-519.19,0.00044657,120]
[330334176,1719259968040,-500.0,0.00044657,120]
[330334177,1719259968069,-500.0,0.00044657,120]
[330334178,1719259968096,-500.0,0.00044657,120]
[330334179,1719259968124,-500.0,0.00044657,120]
[330334180,1719259968151,-646.65280003,0.00044657,120]
[330334181,1719259968179,-500.0,0.00044657,120]
[330334182,1719259968206,-500.0,0.00044657,120]
[330334183,1719259968239,-500.0,0.00044657,120]
[330334184,1719259968266,-500.0,0.00044657,120]
[330334185,1719259968292,-581.28906587,0.00044657,120]
[330334186,1719259968322,-158.02,0.00044657,120]
[330334187,1719259968350,-500.0,0.00044657,120]
[330334188,1719259968376,-500.0,0.00044657,120]
[330334189,1719259968406,-500.0,0.00044657,120]
[330334190,1719259968432,-500.0,0.00044657,120]
[330334191,1719259968461,-500.0,0.00044657,120]
[330334192,1719259968489,-500.0,0.00044657,120]
[330334193,1719259968517,-735.56,0.00044657,120]
[330334194,1719259968544,-500.0,0.00044657,120]
[330334195,1719259968571,-500.0,0.00044657,120]
[330334196,1719259968599,-500.0,0.00044657,120]
[330334197,1719259968625,-500.0,0.00044657,120]
[330334198,1719259968653,-500.0,0.00044657,120]
[330334199,1719259968684,-500.0,0.00044657,120]
[330334200,1719259968711,-500.0,0.00044657,120]
[330334201,1719259968746,-670.34,0.00044657,120]
[330334202,1719259968774,-500.0,0.00044657,120]
[330334203,1719259968800,-173.82104482,0.00044657,120]
[330334204,1719259968828,-500.0,0.00044657,120]
[330334205,1719259968856,-500.0,0.00044657,120]
[330334206,1719259968882,-500.0,0.00044657,120]
[330334207,1719259968910,-500.0,0.00044657,120]
[330334208,1719259968938,-500.0,0.00044657,120]
[330334209,1719259968966,-500.0,0.00044657,120]
[330334210,1719259968995,-500.0,0.00044657,120]
[330334211,1719259969024,-500.0,0.00044657,120]
[330334212,1719259969054,-500.0,0.00044657,120]
[330334213,1719259969081,-486.30767771,0.00044657,120]
[330334214,1719259969110,-2624.07,0.00044657,120]
[330334215,1719259969138,-500.0,0.00044657,120]
[330334216,1719259969166,-500.0,0.00044657,120]
[330334217,1719259969194,-500.0,0.00044657,120]
[330334218,1719259969222,-631.34,0.00044657,120]
[330334219,1719259969427,-500.0,0.00044657,120]
[330334220,1719259969459,-500.0,0.00044657,120]
[330334221,1719259969488,-500.0,0.00044657,120]
[330334222,1719259969519,-500.0,0.00044657,120]
[330334223,1719259969548,-546.62,0.00044657,120]
[330334224,1719259969578,-414.84,0.00044657,120]
[330334225,1719259969608,-500.0,0.00044657,120]
[330334226,1719259969637,-500.0,0.00044657,120]
[330334227,1719259969666,-1775.35,0.00044657,120]
[330334228,1719259969693,-500.0,0.00044657,120]
[330334229,1719259969724,-500.0,0.00044657,120]
[330334230,1719259969753,-500.0,0.00044657,120]
[330334231,1719259969785,-500.0,0.00044657,120]
[330334232,1719259969813,-500.0,0.00044657,120]
[330334233,1719259969841,-500.0,0.00044657,120]
[330334234,1719259969870,-500.0,0.00044657,120]
[330334235,1719259969898,-500.0,0.00044657,120]
[330334236,1719259969926,-619.73,0.00044657,120]
[330334237,1719259969955,-500.0,0.00044657,120]
[330334238,1719259969984,-500.0,0.00044657,120]
[330334239,1719259970012,-500.0,0.00044657,120]
[330334240,1719259970044,-500.0,0.00044657,120]
[330334241,1719259970074,-500.0,0.00044657,120]
[330334242,1719259970102,-500.0,0.00044657,120]
[330334243,1719259970129,-500.0,0.00044657,120]
[330334244,1719259970157,-500.0,0.00044657,120]
[330334245,1719259970185,-500.0,0.00044657,120]
[330334246,1719259970217,-500.0,0.00044657,120]
[330334247,1719259970244,-500.0,0.00044657,120]
[330334248,1719259970275,-500.0,0.00044657,120]
[330334249,1719259970307,-500.0,0.00044657,120]
[330334250,1719259970336,-597.75,0.00044657,120]
[330334251,1719259970363,-1005.97,0.00044657,120]
[330334252,1719259970392,-500.0,0.00044657,120]
[330334253,1719259970420,-500.0,0.00044657,120]
[330334254,1719259970448,-500.0,0.00044657,120]
[330334255,1719259970476,-500.0,0.00044657,120]
[330334256,1719259970504,-1347.71,0.00044657,120]
[330334257,1719259970538,-166.66782286,0.00044657,120]
[330334258,1719259970568,-500.0,0.00044657,120]
[330334259,1719259970596,-500.0,0.00044657,120]
[330334260,1719259970625,-500.0,0.00044657,120]
[330334261,1719259970654,-1324.15,0.00044657,120]
[330334262,1719259970683,-500.0,0.00044657,120]
[330334263,1719259970710,-500.0,0.00044657,120]
[330334264,1719259970745,-500.0,0.00044657,120]
[330334265,1719259970774,-530.26,0.00044657,120]
[330334266,1719259970802,-1114.56,0.00044657,120]
[330334267,1719259970830,-1178.02,0.00044657,120]
[330334268,1719259970857,-1446.6,0.00044657,120]
[330334269,1719259970885,-1169.0,0.00044657,120]
[330334270,1719259970912,-583.04,0.00044657,120]
[330334271,1719259970939,-500.0,0.00044657,120]
[330334272,1719259970966,-515.63,0.00044657,120]
[330334273,1719259970993,-1209.35,0.00044657,120]
[330334274,1719259971023,-500.0,0.00044657,120]
[330334275,1719259971052,-500.0,0.00044657,120]
[330334276,1719259971080,-1790.19,0.00044657,120]
[330334277,1719259971112,-926.47,0.00044657,120]
[330334278,1719259971139,-500.0,0.00044657,120]
[330334279,1719259971166,-488.51037453,0.00044657,120]
[330334280,1719259971194,-1157.48,0.00044657,120]
[330334281,1719259971224,-909.18,0.00044657,120]
[330334282,1719259971252,-500.0,0.00044657,120]
[330334283,1719259971281,-500.0,0.00044657,120]
[330334284,1719259971312,-500.0,0.00044657,120]
[330334285,1719259971339,-500.0,0.00044657,120]
[330334286,1719259971367,-500.0,0.00044657,120]
[330334287,1719259971394,-1019.92,0.00044657,120]
[330334288,1719259971421,-1456.15,0.00044657,120]
[330334289,1719259971448,-500.0,0.00044657,120]
[330334290,1719259971476,-500.0,0.00044657,120]
[330334291,1719259971503,-558.0,0.00044657,120]
[330334292,1719259971532,-1340.93,0.00044657,120]
[330334293,1719259971560,-327.16343015,0.00044657,120]
[330334294,1719259971587,-500.0,0.00044657,120]
[330334295,1719259971615,-1483.76,0.00044657,120]
[330334296,1719259971642,-500.0,0.00044657,120]
[330334297,1719259971670,-500.0,0.00044657,120]
[330334298,1719259971697,-1394.02,0.00044657,120]
[330334299,1719259971727,-2916.72,0.00044657,120]
[330334300,1719259971754,-500.0,0.00044657,120]
[330334301,1719259971784,-754.89,0.00044657,120]
[330334302,1719259971812,-1121.72,0.00044657,120]
[330334303,1719259971840,-400.43794927,0.00044657,120]
[330334304,1719259971873,-1051.18,0.00044657,120]
[330334305,1719259971902,-500.0,0.00044657,120]
[330334306,1719259971931,-510.79,0.00044657,120]
[330334307,1719259971960,-500.0,0.00044657,120]
[330334308,1719259971991,-959.29,0.00044657,120]
[330334309,1719259972024,-500.0,0.00044657,120]
[330334310,1719259972057,-500.0,0.00044657,120]
[330334311,1719259972099,-500.0,0.00044657,120]
[330334312,1719259972133,-795.08,0.00044657,120]
[330334313,1719259972162,-777.45,0.00044657,120]
[330334314,1719259972190,-500.0,0.00044657,120]
[330334315,1719259972222,-500.0,0.00044657,120]
[330334316,1719259972251,-500.0,0.00044657,120]
[330334317,1719259972291,-500.0,0.00044657,120]
[330334318,1719259972322,-1335.72,0.00044657,120]
[330334319,1719259972359,-500.0,0.00044657,120]
[330334320,1719259972392,-500.0,0.00044657,120]
[330334321,1719259972423,-849.22,0.00044657,120]
[330334322,1719259972452,-500.0,0.00044657,120]
[330334323,1719259972709,-590.13,0.00044657,120]
[330334324,1719259972739,-500.0,0.00044657,120]
[330334325,1719259972776,-544.6,0.00044657,120]
[330334326,1719259972805,-500.0,0.00044657,120]
[330334327,1719259972835,-586.01367496,0.00044657,120]
[330334328,1719259972864,-500.0,0.00044657,120]
[330334329,1719259972893,-610.13,0.00044657,120]
[330334330,1719259972922,-847.06,0.00044657,120]
[330334331,1719259972952,-519.7,0.00044657,120]
[330334332,1719259972982,-500.0,0.00044657,120]
[330334333,1719259973011,-830.14,0.00044657,120]
[330334334,1719259973047,-500.0,0.00044657,120]
[330334335,1719259973080,-500.0,0.00044657,120]
[330334336,1719259973111,-597.83,0.00044657,120]
[330334337,1719259973141,-984.9,0.00044657,120]
[330334338,1719259973171,-854.45,0.00044657,120]
[330334339,1719259973202,-500.0,0.00044657,120]
[330334340,1719259973238,-500.0,0.00044657,120]
[330334341,1719259973268,-582.55,0.00044657,120]
[330334342,1719259973301,-500.0,0.00044657,120]
[330334343,1719259973332,-881.36,0.00044657,120]
[330334344,1719259973363,-500.0,0.00044657,120]
[330334345,1719259973393,-586.13,0.00044657,120]
[330334346,1719259973425,-500.0,0.00044657,120]
[330334347,1719259973455,-500.0,0.00044657,120]
[330334348,1719259973486,-500.0,0.00044657,120]
[330334349,1719259973516,-500.0,0.00044657,120]
[330334350,1719259973548,-1846.98,0.00044657,120]
[330334351,1719259973584,-500.0,0.00044657,120]
[330334352,1719259973616,-534.28,0.00044657,120]
[330334353,1719259973647,-500.0,0.00044657,120]
[330334354,1719259973679,-500.0,0.00044657,120]
[330334355,1719259973710,-500.0,0.00044657,120]
[330334356,1719259973741,-575.79,0.00044657,120]
[330334357,1719259973775,-500.0,0.00044657,120]
[330334358,1719259973808,-500.0,0.00044657,120]
[330334359,1719259973839,-606.31,0.00044657,120]
[330334360,1719259973870,-1765.11,0.00044657,120]
[330334361,1719259973900,-411.97117964,0.00044657,120]
[330334362,1719259973932,-185.12861207,0.00044657,120]
[330334363,1719259973963,-758.39,0.00044657,120]
[330334364,1719259973996,-500.0,0.00044657,120]
[330334365,1719259974031,-781.35,0.00044657,120]
[330334366,1719259974063,-253.1421794,0.00044657,120]
[330334367,1719259974097,-500.0,0.00044657,120]
[330334368,1719259974128,-500.0,0.00044657,120]
[330334369,1719259974159,-500.0,0.00044657,120]
[330334370,1719259974190,-500.0,0.00044657,120]
[330334371,1719259974226,-500.0,0.00044657,120]
[330334372,1719259974259,-500.0,0.00044657,120]
[330334373,1719259974291,-500.0,0.00044657,120]
[330334374,1719259974324,-1285.4,0.00044657,120]
[330334375,1719259974356,-584.28,0.00044657,120]
[330334376,1719259974391,-1045.9,0.00044657,120]
[330334377,1719259974424,-536.44,0.00044657,120]
[330334378,1719259974455,-500.0,0.00044657,120]
[330334379,1719259974486,-500.0,0.00044657,120]
[330334380,1719259974516,-1222.63,0.00044657,120]
[330334381,1719259974556,-500.0,0.00044657,120]
[330334382,1719259974587,-500.0,0.00044657,120]
[330334383,1719259974616,-525.7,0.00044657,120]
[330334384,1719259974646,-990.75,0.00044657,120]
[330334385,1719259974676,-1218.13,0.00044657,120]
[330334386,1719259974705,-500.0,0.00044657,120]
[330334387,1719259974735,-500.0,0.00044657,120]
[330334388,1719259974765,-500.0,0.00044657,120]
[330334389,1719259974797,-543.99,0.00044657,120]
[330334390,1719259974827,-500.0,0.00044657,120]
[330334391,1719259974856,-500.0,0.00044657,120]
[330334392,1719259974887,-500.0,0.00044657,120]
[330334393,1719259974917,-584.08,0.00044657,120]
[330334394,1719259974950,-500.0,0.00044657,120]
[330334395,1719259974982,-500.0,0.00044657,120]
[330334396,1719259975014,-653.68,0.00044657,120]
[330334397,1719259975048,-500.0,0.00044657,120]
[330334398,1719259975078,-500.0,0.00044657,120]
[330334399,1719259975109,-500.0,0.00044657,120]
[330334400,1719259975140,-500.0,0.00044657,120]
[330334401,1719259975172,-500.0,0.00044657,120]
[330334402,1719259975201,-500.0,0.00044657,120]
[330334403,1719259975232,-827.16,0.00044657,120]
[330334404,1719259975264,-500.0,0.00044657,120]
[330334405,1719259975304,-1472.2,0.00044657,120]
[330334406,1719259975337,-500.0,0.00044657,120]
[330334407,1719259975368,-1303.49,0.00044657,120]
[330334408,1719259975402,-500.0,0.00044657,120]
[330334409,1719259975432,-500.0,0.00044657,120]
[330334410,1719259975462,-500.0,0.00044657,120]
[330334411,1719259975491,-500.0,0.00044657,120]
[330334412,1719259975525,-500.0,0.00044657,120]
[330334413,1719259975554,-500.0,0.00044657,120]
[330334414,1719259975582,-781.46,0.00044657,120]
[330334415,1719259975612,-500.0,0.00044657,120]
[330334416,1719259975643,-500.0,0.00044657,120]
[330334417,1719259975673,-989.36,0.00044657,120]
[330334418,1719259975703,-996.46,0.00044657,120]
[330334419,1719259975733,-2014.73,0.00044657,120]
[330334420,1719259975763,-500.0,0.00044657,120]
[330334421,1719259975794,-500.0,0.00044657,120]
[330334422,1719259975826,-500.0,0.00044657,120]
[330334423,1719259975855,-500.0,0.00044657,120]
[330334424,1719259975885,-500.0,0.00044657,120]
[330334425,1719259975914,-569.1,0.00044657,120]
[330334426,1719259975943,-1200.09,0.00044657,120]
[330334427,1719259976181,-500.0,0.00044657,120]
[330334428,1719259976212,-500.0,0.00044657,120]
[330334429,1719259976247,-685.64,0.00044657,120]
[330334430,1719259976284,-500.0,0.00044657,120]
[330334431,1719259976312,-500.0,0.00044657,120]
[330334432,1719259976340,-1065.13,0.00044657,120]
[330334433,1719259976368,-500.0,0.00044657,120]
[330334434,1719259976397,-500.0,0.00044657,120]
[330334435,1719259976425,-678.86,0.00044657,120]
[330334436,1719259976456,-513.9,0.00044657,120]
[330334437,1719259976485,-500.0,0.00044657,120]
[330334438,1719259976514,-555.02,0.00044657,120]
[330334439,1719259976545,-500.0,0.00044657,120]
[330334440,1719259976573,-4089.97,0.00044657,120]
[330334441,1719259976602,-500.0,0.00044657,120]
[330334442,1719259976631,-793.42,0.00044657,120]
[330334443,1719259976659,-508.5,0.00044657,120]
[330334444,1719259976688,-500.0,0.00044657,120]
[330334445,1719259976718,-500.0,0.00044657,120]
[330334446,1719259976749,-500.0,0.00044657,120]
[330334447,1719259976780,-500.0,0.00044657,120]
[330334448,1719259976809,-3563.57,0.00044657,120]
[330334449,1719259976840,-1837.16,0.00044657,120]
[330334450,1719259976868,-538.5,0.00044657,120]
[330334451,1719259976897,-500.0,0.00044657,120]
[330334452,1719259976928,-602.22,0.00044657,120]
[330334453,1719259976958,-856.63,0.00044657,120]
[330334454,1719259976991,-500.0,0.00044657,120]
[330334455,1719259977020,-5040.46,0.00044657,120]
[330334456,1719259977059,-23673.21,0.00044657,120]
[330334457,1719259977088,-500.0,0.00044657,120]
[330334458,1719259977117,-500.0,0.00044657,120]
[330334459,1719259977145,-500.0,0.00044657,120]
[330334460,1719259977174,-500.0,0.00044657,120]
[330334461,1719259977202,-500.0,0.00044657,120]
[330334462,1719259977233,-644.86,0.00044657,120]
[330334463,1719259977263,-1194.97,0.00044657,120]
[330334464,1719259977296,-500.0,0.00044657,120]
[330334465,1719259977329,-3087.87,0.00044657,120]
[330334466,1719259977369,-500.0,0.00044657,120]
[330334467,1719259977398,-500.0,0.00044657,120]
[330334468,1719259977426,-532.56,0.00044657,120]
[330334469,1719259977455,-1047.0,0.00044657,120]
[330334470,1719259977484,-1933.05,0.00044657,120]
[330334471,1719259977514,-670.97,0.00044657,120]
[330334472,1719259977544,-500.0,0.00044657,120]
[330334473,1719259977572,-596.27,0.00044657,120]
[330334474,1719259977600,-737.47,0.00044657,120]
[330334475,1719259977628,-5601.69,0.00044657,120]
[330334476,1719259977658,-500.0,0.00044657,120]
[330334477,1719259977687,-614.1,0.00044657,120]
[330334478,1719259977719,-8648.49,0.00044657,120]
[330334479,1719259977750,-500.0,0.00044657,120]
[330334480,1719259977781,-500.0,0.00044657,120]
[330334481,1719259977809,-586.45,0.00044657,120]
[330334482,1719259977838,-737.6,0.00044657,120]
[330334483,1719259977869,-1042.6,0.00044657,120]
[330334484,1719259977901,-4389.73,0.00044657,120]
[330334485,1719259977933,-500.0,0.00044657,120]
[330334486,1719259977965,-500.0,0.00044657,120]
[330334487,1719259977997,-500.0,0.00044657,120]
[330334488,1719259978032,-894.64,0.00044657,120]
[330334489,1719259978061,-917.35,0.00044657,120]
[330334490,1719259978096,-4999.27,0.00044657,120]
[330334491,1719259978129,-735.67,0.00044657,120]
[330334492,1719259978161,-802.65,0.00044657,120]
[330334493,1719259978190,-5870.18,0.00044657,120]
[330334494,1719259978222,-500.0,0.00044657,120]
[330334495,1719259978251,-500.0,0.00044657,120]
[330334496,1719259978283,-1829.02,0.00044657,120]
[330334497,1719259978315,-699.19,0.00044657,120]
[330334498,1719259978344,-575.29,0.00044657,120]
[330334499,1719259978374,-1043.77,0.00044657,120]
[330334500,1719259978404,-4403.67,0.00044657,120]
[330334501,1719259978431,-408.39920796,0.00044657,90]
[330334502,1719259978460,-500.0,0.00044657,120]
[330334503,1719259978489,-763.06,0.00044657,120]
[330334504,1719259978518,-2713.4,0.00044657,120]
[330334505,1719259978547,-709.9,0.00044657,120]
[330334506,1719259978577,-576.1,0.00044657,120]
[330334507,1719259978606,-500.0,0.00044657,120]
[330334508,1719259978637,-500.0,0.00044657,120]
[330334509,1719259978666,-500.0,0.00044657,120]
[330334510,1719259978695,-8968.63,0.00044657,120]
[330334511,1719259978723,-500.0,0.00044657,120]
[330334512,1719259978755,-37021.68,0.00044657,120]
[330334513,1719259978784,-500.0,0.00044657,120]
[330334514,1719259978813,-500.0,0.00044657,120]
[330334515,1719259978842,-221.28352436,0.00044657,120]
[330334516,1719259978872,-500.0,0.00044657,120]
[330334517,1719259978909,-1097.53,0.00044657,120]
[330334518,1719259978940,-11437.04,0.00044657,120]
[330334519,1719259978973,-345.4722216,0.00044657,120]